bitfinex/quotes_BTCUSD_20241101
["timestamp","ask_amount","ask_price","bid_price","bid_amount"]
[1730473836735,0.21079554,70982.0,70961.0,0.095]
[1730473836962,0.21079554,70982.0,70970.0,0.140903]
[1730473836963,0.21079554,70972.0,70970.0,0.140903]
[1730473837168,0.140889,70978.0,70970.0,0.140904]
[1730473837169,0.001,70971.0,70970.0,0.140904]
[1730473837381,0.001,70971.0,70970.0,0.235904]
[1730473837628,0.001,70971.0,70970.0,0.314404]
[1730473837842,0.001,70971.0,70970.0,0.1735]
[1730473838054,0.001,70971.0,70957.0,0.000824]
[1730473838055,0.1,70970.0,70957.0,0.175624]
[1730473838261,0.140928,70958.0,70957.0,0.175624]
[1730473839201,0.15409294,70958.0,70957.0,0.175624]
[1730473839656,0.15409263,70958.0,70957.0,0.175624]
[1730473840615,0.16409263,70958.0,70957.0,0.175624]
[1730473840873,0.02316463,70958.0,70957.0,0.175624]
[1730473841106,0.02316463,70958.0,70957.0,0.000824]
[1730473841107,0.16161988,70958.0,70957.0,0.000824]
[1730473841334,0.32554788,70958.0,70957.0,0.000824]
[1730473842243,0.41447227,70958.0,70957.0,0.000824]
[1730473842445,0.32554788,70958.0,70957.0,0.000824]
[1730473845271,0.42554788,70958.0,70957.0,0.000824]
[1730473850956,0.42554788,70958.0,70957.0,0.010824]
[1730473851901,0.4025613,70958.0,70957.0,0.010824]
[1730473853016,0.4255613,70958.0,70957.0,0.010824]
[1730473853990,0.02317805,70958.0,70957.0,0.010824]
[1730473854436,0.02317805,70958.0,70957.0,0.151754]
[1730473854954,0.02317805,70958.0,70957.0,0.318254]
[1730473855129,0.01,70958.0,70957.0,0.308254]
[1730473855349,0.006,70958.0,70957.0,0.308254]
[1730473855591,0.007,70958.0,70957.0,0.308254]
[1730473856494,0.001,70958.0,70957.0,0.308254]
[1730473856939,0.15609865,70958.0,70957.0,0.171324]
[1730473857115,0.01517065,70958.0,70957.0,0.167324]
[1730473857332,0.15609865,70958.0,70957.0,0.171324]
[1730473858012,0.15709865,70958.0,70957.0,0.171324]
[1730473858259,0.15509865,70958.0,70957.0,0.167324]
[1730473858467,0.15409952,70958.0,70957.0,0.167324]
[1730473858679,0.15509952,70958.0,70957.0,0.092224]
[1730473859145,0.15409952,70958.0,70957.0,0.092224]
[1730473860005,0.15409952,70958.0,70957.0,0.102224]
[1730473860242,0.15509952,70958.0,70957.0,0.106224]
[1730473860450,0.15509952,70958.0,70957.0,0.102224]
[1730473860451,0.39261812,70958.0,70957.0,0.102224]
[1730473860695,0.41855477,70958.0,70957.0,0.010824]
[1730473861168,0.41655477,70958.0,70957.0,0.010824]
[1730473861374,0.42155477,70958.0,70957.0,0.010824]
[1730473861671,0.42055477,70958.0,70957.0,0.010824]
[1730473862117,0.44155477,70958.0,70957.0,0.010824]
[1730473862568,0.45363235,70958.0,70957.0,0.010824]
[1730473863222,0.43663235,70958.0,70957.0,0.000824]
[1730473863663,0.45063235,70958.0,70957.0,0.000824]
[1730473863868,0.43663235,70958.0,70957.0,0.000824]
[1730473864320,0.42955477,70958.0,70957.0,0.000824]
[1730473864534,0.44255477,70958.0,70957.0,0.000824]
[1730473865194,0.18109952,70958.0,70957.0,0.000824]
[1730473865421,0.04016863,70958.0,70957.0,0.083824]
[1730473865883,0.04016863,70958.0,70957.0,0.09480197]
[1730473866155,0.04016863,70958.0,70957.0,0.23573197]
[1730473866386,0.01316863,70958.0,70957.0,0.09480197]
[1730473866848,0.01316863,70958.0,70957.0,0.09780197]
[1730473867063,0.01316863,70958.0,70957.0,0.23573197]
[1730473867506,0.01316863,70958.0,70957.0,0.23873197]
[1730473867741,0.01416863,70958.0,70957.0,0.23573197]
[1730473867975,0.001,70958.0,70957.0,0.37700553]
[1730473868201,0.21079554,70973.0,70957.0,0.56933105]
[1730473868416,0.21079554,70973.0,70972.0,0.3131]
[1730473868648,0.22396674,70973.0,70972.0,0.3131]
[1730473868871,0.001648,70983.0,70982.0,0.14088]
[1730473869088,0.001648,70983.0,70982.0,0.31568]
[1730473869340,0.001648,70999.0,70983.0,0.281757]
[1730473869568,0.001648,70999.0,70984.0,0.563506]
[1730473869791,0.001648,70999.0,70998.0,0.140849]
[1730473870269,0.001648,70999.0,70998.0,0.239549]
[1730473870499,0.001648,70999.0,70998.0,0.315649]
[1730473871183,0.001648,70999.0,70998.0,0.318649]
[1730473871403,0.142495,70999.0,70998.0,0.1748]
[1730473871633,0.142495,70999.0,70998.0,0.0987]
[1730473871856,0.143495,70999.0,70998.0,0.1037]
[1730473872074,0.28195025,70999.0,70998.0,0.005]
[1730473872293,0.40495025,70999.0,70998.0,0.005]
[1730473872516,0.40595025,70999.0,70998.0,0.005]
[1730473872724,0.426938,70999.0,70998.0,0.005]
[1730473872946,0.426938,70999.0,70989.0,0.21079554]
[1730473872947,0.140864,70990.0,70989.0,0.21079554]
[1730473873178,0.281726,70991.0,70985.0,0.0972]
[1730473873399,0.140864,70990.0,70989.0,0.01114974]
[1730473873630,0.1,70998.0,70990.0,0.140864]
[1730473873849,0.281698,70998.0,70985.0,0.10001721]
[1730473874075,0.140849,70998.0,70991.0,0.01114275]
[1730473874297,0.140853,70996.0,70992.0,0.14086]
[1730473874528,0.001648,70999.0,70992.0,0.15199766]
[1730473874744,0.001648,70999.0,70998.0,0.01]
[1730473874745,0.143495,70999.0,70998.0,0.01]
[1730473875173,0.28095025,70999.0,70998.0,0.01]
[1730473875389,0.40395025,70999.0,70998.0,0.01]
[1730473876240,0.40995025,70999.0,70998.0,0.01]
[1730473877576,0.39395025,70999.0,70998.0,0.01]
[1730473877789,0.155495,70999.0,70995.0,0.140854]
[1730473878001,0.155495,70999.0,70998.0,0.236649]
[1730473878002,0.024648,70999.0,70998.0,0.236649]
[1730473878438,0.024648,70999.0,70998.0,0.24775952]
[1730473878652,0.142459,71017.0,71005.0,0.140835]
[1730473878920,0.21079554,71012.0,71011.0,0.140823]
[1730473879148,0.21079554,71012.0,71011.0,0.306923]
[1730473879378,0.140821,71012.0,71011.0,0.1771427]
[1730473879821,0.001648,71017.0,71011.0,0.1771427]
[1730473879822,0.140817,71014.0,71011.0,0.1771427]
[1730473880032,0.001648,71017.0,71011.0,0.1771427]
[1730473880237,0.002,71012.0,71011.0,0.3179647]
[1730473881096,0.140817,71014.0,71011.0,0.3179657]
[1730473881523,0.001648,71017.0,71011.0,0.4587877]
[1730473881730,0.001648,71017.0,71016.0,0.140813]
[1730473881960,0.001648,71017.0,71016.0,0.117706]
[1730473882172,0.001648,71017.0,71016.0,0.12871564]
[1730473882614,0.001648,71017.0,71016.0,0.01100964]
[1730473882831,0.002648,71017.0,71016.0,0.01100964]
[1730473883054,0.002648,71017.0,71016.0,0.140813]
[1730473883290,0.001648,71017.0,71016.0,0.15182264]
[1730473883509,0.001648,71017.0,71016.0,0.38967789]
[1730473883773,0.001594,71054.0,71016.0,0.38967789]
[1730473883774,0.21079554,71028.0,71027.0,0.140791]
[1730473884225,0.35156254,71039.0,71035.0,0.140775]
[1730473884454,0.35156254,71039.0,71036.0,0.140773]
[1730473884691,0.281489,71051.0,71037.0,0.1783]
[1730473884919,0.1,71046.0,71037.0,0.1783]
[1730473885123,0.1,71046.0,71038.0,0.0115331]
[1730473885124,0.01305457,71045.0,71038.0,0.0115331]
[1730473885397,0.140767,71039.0,71038.0,0.0115331]
[1730473885606,0.1,71046.0,71038.0,0.0115331]
[1730473886034,0.1,71048.0,71038.0,0.0115331]
[1730473886251,0.001594,71054.0,71038.0,0.0115331]
[1730473886481,0.281491,71050.0,71045.0,0.140754]
[1730473886698,0.140753,71047.0,71040.0,0.281531]
[1730473886926,0.140751,71047.0,71046.0,0.01148231]
[1730473887166,0.2815,71048.0,71043.0,0.140758]
[1730473887375,0.140748,71049.0,71045.0,0.140754]
[1730473887598,0.21079554,71049.0,71038.0,0.002]
[1730473887835,0.140753,71046.0,71045.0,0.001]
[1730473888038,0.140761,71042.0,71038.0,0.140769]
[1730473888242,0.140761,71043.0,71037.0,0.1783]
[1730473888444,0.140763,71041.0,71038.0,0.140768]
[1730473888887,0.13845525,71049.0,71039.0,0.140766]
[1730473889139,0.21079554,71048.0,71037.0,0.1783]
[1730473889346,0.140757,71044.0,71043.0,0.001]
[1730473889563,0.14076,71043.0,71039.0,0.140767]
[1730473889770,0.281507,71046.0,71038.0,0.22079554]
[1730473889987,0.007,71041.0,71040.0,0.422296]
[1730473890222,0.140753,71047.0,71043.0,0.140759]
[1730473890447,0.140753,71047.0,71038.0,0.22079554]
[1730473890448,0.21079554,71049.0,71038.0,0.01]
[1730473890661,0.140746,71050.0,71046.0,0.140753]
[1730473891062,0.140746,71050.0,71047.0,0.01147724]
[1730473891269,0.140749,71048.0,71047.0,0.01147724]
[1730473891478,0.281483,71052.0,71043.0,0.281516]
[1730473891679,0.281483,71052.0,71047.0,0.01147724]
[1730473891948,0.005,71049.0,71048.0,0.140749]
[1730473892146,0.005,71049.0,71048.0,0.01143681]
[1730473892348,0.145747,71049.0,71048.0,0.01143681]
[1730473892588,0.140754,71046.0,71041.0,0.281524]
[1730473892837,0.140765,71040.0,71039.0,0.21098742]
[1730473893089,0.140765,71040.0,71039.0,0.00019188]
[1730473893502,0.15379241,71040.0,71039.0,0.00019188]
[1730473894163,0.15579241,71040.0,71039.0,0.00019188]
[1730473894393,0.41724766,71040.0,71039.0,0.00019188]
[1730473894603,0.41524766,71040.0,71039.0,0.00019188]
[1730473894825,0.140785,71030.0,71029.0,0.21079554]
[1730473895044,0.15381241,71030.0,71029.0,0.21079554]
[1730473895271,0.140787,71029.0,71028.0,0.0958]
[1730473895484,0.15381441,71029.0,71028.0,0.0958]
[1730473896137,0.15383891,71029.0,71028.0,0.0958]
[1730473896378,0.15583891,71029.0,71028.0,0.0958]
[1730473897063,0.15883891,71029.0,71028.0,0.0958]
[1730473897505,0.15983891,71029.0,71028.0,0.0958]
[1730473898408,0.18075876,71029.0,71028.0,0.0958]
[1730473898639,0.18075876,71029.0,71022.0,0.0781]
[1730473898640,0.140799,71023.0,71022.0,0.0781]
[1730473898844,0.140809,71018.0,71017.0,0.000824]
[1730473899071,0.17478076,71018.0,71017.0,0.000824]
[1730473899298,0.15386091,71018.0,71017.0,0.000824]
[1730473899727,0.01309111,71018.0,71017.0,0.000824]
[1730473899945,0.01309111,71018.0,71017.0,0.141635]
[1730473900185,0.01309111,71018.0,71017.0,0.149635]
[1730473900186,0.01409111,71018.0,71017.0,0.149635]
[1730473900892,0.01509111,71018.0,71017.0,0.152635]
[1730473901094,0.01409111,71018.0,71017.0,0.144635]
[1730473901303,0.01409111,71018.0,71017.0,0.145635]
[1730473901304,0.01309111,71018.0,71017.0,0.145635]
[1730473902151,0.01309111,71018.0,71017.0,0.1484509]
[1730473902398,0.01309111,71018.0,71017.0,0.28690615]
[1730473902620,0.001,71018.0,71017.0,0.28709025]
[1730473903510,0.02096068,71030.0,71029.0,0.140787]
[1730473903717,0.03406434,71030.0,71029.0,0.140787]
[1730473904684,0.03406434,71030.0,71029.0,0.15059275]
[1730473905088,0.04206434,71030.0,71029.0,0.15159275]
[1730473905939,0.04706434,71030.0,71029.0,0.15159275]
[1730473906525,0.04706434,71030.0,71029.0,0.01080575]
[1730473906893,0.013,71030.0,71029.0,0.001]
[1730473907096,0.04713028,71030.0,71029.0,0.001]
[1730473907748,0.18791528,71030.0,71029.0,0.001]
[1730473907969,0.18791528,71030.0,71029.0,0.01080575]
[1730473908633,0.32637053,71030.0,71029.0,0.001]
[1730473908848,0.66016607,71030.0,71029.0,0.001]
[1730473909055,0.163809,71018.0,71017.0,0.000824]
[1730473909263,0.33639453,71018.0,71017.0,0.000824]
[1730473909498,0.33639453,71018.0,71017.0,0.00930536]
[1730473909701,0.33639453,71018.0,71017.0,0.000824]
[1730473910357,0.31339453,71018.0,71017.0,0.000824]
[1730473910568,0.31739453,71018.0,71017.0,0.000824]
[1730473910782,0.32439453,71018.0,71017.0,0.001824]
[1730473910987,0.31739453,71018.0,71017.0,0.000824]
[1730473911231,0.17893928,71018.0,71017.0,0.000824]
[1730473911480,0.35039453,71018.0,71017.0,0.001824]
[1730473912324,0.44639453,71018.0,71017.0,0.001824]
[1730473912765,0.44339453,71018.0,71017.0,0.000824]
[1730473913179,0.45139453,71018.0,71017.0,0.000824]
[1730473914075,0.43639453,71018.0,71017.0,0.000824]
[1730473914428,0.43639453,71018.0,70988.0,0.49253254]
[1730473914429,0.140874,70985.0,70983.0,0.000824]
[1730473914612,0.263874,70985.0,70983.0,0.000824]
[1730473914967,0.29803246,70985.0,70984.0,0.00771836]
[1730473915407,0.29803246,70985.0,70984.0,0.00752633]
[1730473916981,0.67528325,70985.0,70984.0,0.00852633]
[1730473917193,0.263912,70966.0,70965.0,0.21079554]
[1730473917419,0.43652571,70966.0,70965.0,0.21079554]
[1730473917641,0.43652571,70966.0,70957.0,0.21161954]
[1730473917642,0.140928,70958.0,70957.0,0.21161954]
[1730473917857,0.15406587,70958.0,70957.0,0.21161954]
[1730473918084,0.17508646,70958.0,70957.0,0.000824]
[1730473918295,0.17496195,70958.0,70957.0,0.000824]
[1730473918530,0.15401798,70958.0,70957.0,0.000824]
[1730473919590,0.281756,70984.0,70959.0,0.0826]
[1730473919802,0.24037383,70993.0,70959.0,0.0826]
[1730473919803,0.140916,70964.0,70959.0,0.0826]
[1730473920005,0.21079554,70974.0,70960.0,0.140923]
[1730473920006,0.281813,70969.0,70960.0,0.140923]
[1730473920218,0.281829,70965.0,70959.0,0.0826]
[1730473920423,0.140908,70969.0,70961.0,0.140921]
[1730473920627,0.140908,70969.0,70959.0,0.0826]
[1730473920628,0.140911,70967.0,70959.0,0.223524]
[1730473920833,0.281797,70973.0,70959.0,0.0826]
[1730473921066,0.140914,70965.0,70959.0,0.226526]
[1730473921275,0.001,70964.0,70959.0,0.223526]
[1730473921705,0.001,70964.0,70963.0,0.140918]
[1730473921912,0.001,70964.0,70963.0,0.14373599]
[1730473922640,0.21079554,70982.0,70981.0,0.316982]
[1730473923306,0.21079554,70992.0,70984.0,0.281753]
[1730473923456,0.35165654,70992.0,70986.0,0.140871]
[1730473923655,0.21079554,70992.0,70981.0,0.1761]
[1730473923949,0.140863,70991.0,70985.0,0.140874]
[1730473924189,0.1,70998.0,70981.0,0.1761]
[1730473924409,0.21079554,71000.0,70985.0,0.281746]
[1730473924410,0.21079554,70992.0,70985.0,0.281746]
[1730473924612,0.35165654,70992.0,70984.0,0.003]
[1730473924817,0.21079554,71000.0,70981.0,0.1761]
[1730473925048,0.21079554,70992.0,70981.0,0.1761]
[1730473925253,0.15151523,70999.0,70985.0,0.002]
[1730473925254,0.28173,70990.0,70985.0,0.002]
[1730473925491,0.281702,70997.0,70985.0,0.002]
[1730473925699,0.140857,70994.0,70987.0,0.140869]
[1730473925926,0.281698,70998.0,70985.0,0.002]
[1730473926154,0.001,70992.0,70985.0,0.002]
[1730473926390,0.001,70992.0,70988.0,0.140867]
[1730473926612,0.21079554,71000.0,70994.0,0.140856]
[1730473926613,0.21079554,70998.0,70994.0,0.140856]
[1730473926854,0.21079554,70998.0,70985.0,0.13845525]
[1730473926855,0.21079554,71001.0,70987.0,0.001]
[1730473927071,0.422481,71009.0,71000.0,0.140844]
[1730473927280,0.01,71017.0,70998.0,0.281698]
[1730473927281,0.21079554,71002.0,70998.0,0.281698]
[1730473927503,0.01,71017.0,71001.0,0.21079554]
[1730473927778,0.01,71017.0,70998.0,0.281698]
[1730473927779,0.21079554,71009.0,70998.0,0.281698]
[1730473928017,0.28163,71015.0,71004.0,0.140836]
[1730473928246,0.01,71017.0,70999.0,0.281694]
[1730473928247,0.281654,71009.0,70999.0,0.281694]
[1730473928468,0.01,71017.0,70999.0,0.281694]
[1730473928469,0.01,71017.0,71002.0,0.281682]
[1730473928670,0.21079554,71009.0,70998.0,0.281696]
[1730473928876,0.140834,71006.0,70999.0,0.35164154]
[1730473929100,0.14845525,71017.0,70996.0,0.460605]
[1730473929101,0.14845525,71017.0,70996.0,0.1789]
[1730473929308,0.140851,70997.0,70996.0,0.1789]
[1730473929540,0.422544,70999.0,70998.0,0.005]
[1730473929766,0.140847,70999.0,70998.0,0.005]
[1730473929980,0.140851,70997.0,70996.0,0.1789]
[1730473930420,0.140851,70997.0,70996.0,0.1839]
[1730473930905,0.28169,71000.0,70996.0,0.1839]
[1730473931133,0.140849,70998.0,70996.0,0.1839]
[1730473931347,0.140849,70998.0,70996.0,0.1789]
[1730473931845,0.140849,70998.0,70997.0,0.00995635]
[1730473932506,0.281674,71004.0,70997.0,0.00995635]
[1730473932736,0.140839,71003.0,70998.0,0.003]
[1730473932961,0.291623,71017.0,71002.0,0.14084]
[1730473933190,0.28166,71008.0,70998.0,0.004]
[1730473933412,0.23845525,71016.0,70998.0,0.49649054]
[1730473933413,0.281646,71012.0,70998.0,0.49649054]
[1730473933634,0.140832,71007.0,71001.0,0.140842]
[1730473934112,0.23845525,71016.0,70998.0,0.003]
[1730473934328,0.140839,71003.0,70997.0,0.15480635]
[1730473934577,0.140839,71003.0,70998.0,0.003]
[1730473934780,0.281678,71003.0,70998.0,0.003]
[1730473934986,0.140839,71003.0,70998.0,0.003]
[1730473935331,0.001,71004.0,70999.0,0.00993602]
[1730473935678,0.140845,71000.0,70999.0,0.00993602]
[1730473935897,0.140845,71000.0,70996.0,0.1789]
[1730473935898,0.281666,71006.0,70996.0,0.1789]
[1730473936097,0.21079554,71008.0,71001.0,0.001]
[1730473936299,0.140841,71002.0,71001.0,0.001]
[1730473936555,0.281662,71007.0,70996.0,0.1789]
[1730473936765,0.04122235,71040.0,70996.0,0.1789]
[1730473936766,0.140849,70998.0,70996.0,0.1789]
[1730473937176,0.281695,70999.0,70996.0,0.1789]
[1730473937382,0.140851,70997.0,70996.0,0.1789]
[1730473937734,0.140851,70997.0,70996.0,0.1829]
[1730473938363,0.001,71007.0,70996.0,0.1829]
[1730473938526,0.140842,71002.0,70997.0,0.422553]
[1730473938719,0.001,71007.0,70996.0,0.1829]
[1730473938922,0.140833,71006.0,70999.0,0.281694]
[1730473939194,0.01410785,71007.0,71000.0,0.00992586]
[1730473939195,0.001,71007.0,71000.0,0.00992586]
[1730473939405,0.21079554,71009.0,71000.0,0.00992586]
[1730473939631,0.21079554,71027.0,71002.0,0.24037383]
[1730473939846,0.01310697,71016.0,71015.0,0.140815]
[1730473940350,0.281599,71023.0,71016.0,0.140813]
[1730473940569,0.28159,71026.0,71016.0,0.140813]
[1730473940776,0.011,71017.0,71016.0,0.3911535]
[1730473940993,0.012,71017.0,71016.0,0.3911535]
[1730473941373,0.011,71017.0,71016.0,0.3911535]
[1730473942134,0.01,71017.0,71016.0,0.3911535]
[1730473942583,0.01,71017.0,71016.0,0.01196667]
[1730473942786,0.150811,71017.0,71016.0,0.002]
[1730473943037,0.28926625,71017.0,71016.0,0.005]
[1730473943369,0.140833,71006.0,71005.0,0.0754]
[1730473943814,0.140833,71006.0,71005.0,0.08546345]
[1730473944230,0.140833,71006.0,71005.0,0.01006345]
[1730473944443,0.28165,71011.0,71002.0,0.09]
[1730473944672,0.140839,71003.0,71002.0,0.09]
[1730473945293,0.28167,71006.0,71002.0,0.09]
[1730473945529,0.23279554,71017.0,71003.0,0.24037383]
[1730473945737,0.01310164,71016.0,71003.0,0.24037383]
[1730473945971,0.140835,71006.0,71002.0,0.09]
[1730473946145,0.001,71006.0,71004.0,0.01008328]
[1730473946406,0.141834,71006.0,71003.0,0.01009344]
[1730473946610,0.140829,71008.0,71005.0,0.01007312]
[1730473946867,0.281655,71009.0,71005.0,0.01007312]
[1730473947082,0.140834,71006.0,71003.0,0.001]
[1730473947306,0.140834,71006.0,71002.0,0.09]
[1730473947532,0.002,71006.0,71004.0,0.140836]
[1730473947770,0.002,71006.0,71005.0,0.1436514]
[1730473947972,0.22244354,71017.0,71005.0,0.1436514]
[1730473947973,0.21079554,71015.0,71012.0,0.140821]
[1730473948147,0.21079554,71015.0,71013.0,0.0803]
[1730473948391,0.15394085,71014.0,71013.0,0.0803]
[1730473948601,0.01312385,71014.0,71013.0,0.0803]
[1730473949008,0.011648,71017.0,71013.0,0.0803]
[1730473949009,0.142459,71017.0,71013.0,0.221119]
[1730473949230,0.29475285,71016.0,71013.0,0.0803]
[1730473949407,0.01312385,71015.0,71013.0,0.0803]
[1730473949662,0.01312385,71014.0,71013.0,0.221118]
[1730473950074,0.01412385,71014.0,71013.0,0.09528978]
[1730473950281,0.01412385,71014.0,71013.0,0.10128978]
[1730473950486,0.01312385,71014.0,71013.0,0.09628978]
[1730473950688,0.15394085,71014.0,71013.0,0.10128978]
[1730473950896,0.15394085,71014.0,71013.0,0.09528978]
[1730473951070,0.15494085,71014.0,71013.0,0.10128978]
[1730473951528,0.15494085,71014.0,71013.0,0.09628978]
[1730473951682,0.15494085,71014.0,71013.0,0.0863]
[1730473951884,0.15494085,71014.0,71013.0,0.09628978]
[1730473952887,0.15594085,71014.0,71013.0,0.10128978]
[1730473954597,0.01512385,71014.0,71013.0,0.10128978]
[1730473954818,0.01512385,71014.0,71013.0,0.24210878]
[1730473956540,0.01512385,71014.0,71013.0,0.54500432]
[1730473956758,0.002,71014.0,71013.0,0.47266403]
[1730473957839,0.001,71014.0,71013.0,0.46766403]
[1730473958047,0.002,71014.0,71013.0,0.47666403]
[1730473958488,0.002,71014.0,71013.0,0.47066403]
[1730473958713,0.001,71014.0,71013.0,0.47066403]
[1730473958918,0.002,71014.0,71013.0,0.47966403]
[1730473959352,0.001,71014.0,71013.0,0.47066403]
[1730473959558,0.001648,71017.0,71016.0,0.140813]
[1730473959763,0.001648,71017.0,71016.0,0.51964208]
[1730473960178,0.001648,71017.0,71016.0,0.5295949]
[1730473961531,0.002648,71017.0,71016.0,0.5375949]
[1730473961985,0.003648,71017.0,71016.0,0.5465949]
[1730473963807,0.003648,71017.0,71016.0,0.6290949]
[1730473964011,0.001648,71030.0,71029.0,0.56256083]
[1730473964217,0.001648,71030.0,71029.0,0.70101608]
[1730473964423,0.001648,71030.0,71029.0,0.71083685]
[1730473966064,0.001648,71030.0,71029.0,0.71883685]
[1730473966737,0.001648,71030.0,71029.0,0.71083685]
[1730473966966,0.001648,71030.0,71029.0,0.71883685]
[1730473967194,0.001648,71030.0,71029.0,0.72683685]
[1730473975948,0.001648,71030.0,71029.0,1.06721068]
[1730473976420,0.001648,71030.0,71029.0,0.82683685]
[1730473976652,0.001648,71030.0,71029.0,0.84983685]
[1730473976877,0.001648,71030.0,71029.0,1.09021068]
[1730473977105,0.001648,71030.0,71029.0,1.08221068]
[1730473977808,0.001648,71030.0,71029.0,0.84183685]
[1730473978035,0.001648,71030.0,71029.0,0.83383685]
[1730473978265,0.001648,71030.0,71029.0,0.71083685]
[1730473978747,0.001648,71030.0,71029.0,0.92163239]
[1730473978968,0.001648,71030.0,71029.0,0.96721068]
[1730473979192,0.001648,71030.0,71029.0,0.71883685]
[1730473979417,0.001648,71030.0,71029.0,0.37583685]
[1730473979643,0.001648,71030.0,71029.0,0.63962385]
[1730473979865,0.001648,71030.0,71029.0,0.63262385]
[1730473980090,0.001648,71030.0,71029.0,0.63962385]
[1730473980332,0.001648,71030.0,71029.0,0.63162385]
[1730473980563,0.001648,71030.0,71029.0,0.87199768]
[1730473980789,0.001648,71030.0,71029.0,0.63962385]
[1730473981312,0.001648,71030.0,71029.0,0.63162385]
[1730473981718,0.001648,71030.0,71029.0,0.61662385]
[1730473989883,0.001648,71030.0,71029.0,0.2651946]
[1730473990090,0.15558863,71030.0,71029.0,0.02482077]
[1730473990745,0.15558863,71030.0,71029.0,0.008]
[1730473990942,0.15558863,71030.0,71024.0,0.5]
[1730473990943,0.140795,71025.0,71024.0,0.5]
[1730473991151,0.15395063,71025.0,71024.0,0.5]
[1730473993086,0.15395063,71025.0,71024.0,0.507]
[1730473993292,0.23285063,71025.0,71024.0,0.507]
[1730473993520,0.23285063,71025.0,71024.0,0.513]
[1730473994193,0.219695,71025.0,71024.0,0.513]
[1730473994423,0.23284693,71025.0,71024.0,0.52282531]
[1730473994657,0.23284594,71025.0,71024.0,0.52282531]
[1730473995092,0.23284594,71025.0,71024.0,0.52364931]
[1730473995534,0.59080119,71025.0,71024.0,0.52364931]
[1730473995977,0.59080119,71025.0,71024.0,0.02364931]
[1730473996194,0.59080119,71025.0,71024.0,0.013824]
[1730473996658,0.59080119,71025.0,71024.0,0.000824]
[1730473996871,0.59180119,71025.0,71024.0,0.001824]
[1730473997083,0.59280119,71025.0,71024.0,0.002824]
[1730473997296,0.59180119,71025.0,71024.0,0.001824]
[1730473997521,0.59080119,71025.0,71024.0,0.000824]
[1730473997752,0.59180119,71025.0,71024.0,0.001824]
[1730473998372,0.57865025,71025.0,71024.0,0.001824]
[1730473998600,0.59177491,71025.0,71024.0,0.001824]
[1730473999475,0.59277491,71025.0,71024.0,0.002824]
[1730474000596,0.59277491,71025.0,71024.0,0.012824]
[1730474005478,0.59277491,71025.0,71024.0,0.002824]
[1730474006687,0.59275117,71025.0,71024.0,0.002824]
[1730474007385,0.49625117,71025.0,71024.0,0.002824]
[1730474008012,0.41735117,71025.0,71024.0,0.002824]
[1730474008996,0.41635117,71025.0,71024.0,0.001824]
[1730474009432,0.41735117,71025.0,71024.0,0.002824]
[1730474009647,0.41735117,71025.0,71024.0,0.012824]
[1730474009874,0.41535117,71025.0,71024.0,0.010824]
[1730474010191,0.41735117,71025.0,71024.0,0.012824]
[1730474010402,0.41735927,71025.0,71024.0,0.012824]
[1730474010781,0.15590402,71025.0,71024.0,0.012824]
[1730474010976,0.15590402,71025.0,71024.0,0.011824]
[1730474010977,0.141795,71025.0,71024.0,0.011824]
[1730474011335,0.142795,71025.0,71024.0,0.012824]
[1730474011536,0.002,71025.0,71024.0,0.02414011]
[1730474011737,0.001,71025.0,71024.0,0.02314011]
[1730474012126,0.142795,71025.0,71024.0,0.02314011]
[1730474012543,0.140795,71025.0,71024.0,0.000824]
[1730474012950,0.142795,71025.0,71024.0,0.000824]
[1730474013189,0.141795,71025.0,71024.0,0.000824]
[1730474013390,0.15491583,71025.0,71024.0,0.000824]
[1730474013599,0.15591583,71025.0,71024.0,0.000824]
[1730474014213,0.142795,71025.0,71024.0,0.000824]
[1730474014463,0.15591842,71025.0,71024.0,0.000824]
[1730474016069,0.41737367,71025.0,71024.0,0.000824]
[1730474017408,0.41637367,71025.0,71024.0,0.000824]
[1730474017688,0.41637367,71025.0,71024.0,0.001824]
[1730474018092,0.41837367,71025.0,71024.0,0.002824]
[1730474018295,0.41840568,71025.0,71024.0,0.002824]
[1730474018532,0.40525025,71025.0,71024.0,0.002824]
[1730474018732,0.41641585,71025.0,71024.0,0.001824]
[1730474018870,0.41741585,71025.0,71024.0,0.001824]
[1730474019071,0.42141585,71025.0,71024.0,0.002824]
[1730474019932,0.55989315,71025.0,71024.0,0.002824]
[1730474020132,0.263809,71018.0,71017.0,0.000824]
[1730474020343,0.40226425,71018.0,71017.0,0.000824]
[1730474020547,0.41544376,71018.0,71017.0,0.000824]
[1730474021173,0.41744376,71018.0,71017.0,0.001824]
[1730474022230,0.41744434,71018.0,71017.0,0.001824]
[1730474022852,0.42244434,71018.0,71017.0,0.002824]
[1730474025723,0.16098909,71018.0,71017.0,0.002824]
[1730474026150,0.16098281,71018.0,71017.0,0.002824]
[1730474026368,0.1589821,71018.0,71017.0,0.001824]
[1730474026573,0.1539821,71018.0,71017.0,0.000824]
[1730474026783,0.1589821,71018.0,71017.0,0.000824]
[1730474027197,0.1559821,71018.0,71017.0,0.000824]
[1730474027645,0.1609821,71018.0,71017.0,0.001824]
[1730474027853,0.1589821,71018.0,71017.0,0.001824]
[1730474028271,0.1619821,71018.0,71017.0,0.002824]
[1730474028508,0.0211731,71018.0,71017.0,0.002824]
[1730474028721,0.1619821,71018.0,71017.0,0.002824]
[1730474028935,0.0211731,71018.0,71017.0,0.002824]
[1730474029153,0.1619821,71018.0,71017.0,0.01042689]
[1730474029362,0.0131731,71018.0,71017.0,0.00842689]
[1730474029590,0.0151731,71018.0,71017.0,0.00842689]
[1730474029808,0.0161731,71018.0,71017.0,0.00842689]
[1730474030035,0.001,71018.0,71017.0,0.00842689]
[1730474030265,0.01617118,71018.0,71017.0,0.00842689]
[1730474030492,0.01417118,71018.0,71017.0,0.22813789]
[1730474030692,0.01417118,71018.0,71017.0,0.36940896]
[1730474030978,0.001648,71029.0,71027.0,0.140791]
[1730474030979,0.01317118,71028.0,71027.0,0.140791]